[Event "Djerba Festival Masters 2024"]
[Site "Djerba"]
[Date "2024.02.25"]
[Round "7.4"]
[White "Tari, Aryan"]
[Black "Moussard, Jules"]
[Result "1/2-1/2"]
[ECO "C42"]
[WhiteElo "2623"]
[BlackElo "2630"]
[Annotator "TA"]
[PlyCount "39"]
[EventDate "2024.02.18"]
[EventType "tourn"]
[EventCountry "TUN"]
[SourceTitle "playchess.com"]
[Source "ChessBase"]
[SourceQuality "1"]
[TimeControl "5400+30"]

{[%evp 12,39,10,0,33,10,19,-2,45,37,39,3,17,0,34,30,34,14,21,31,24,29,25,-7,0,6,3,-3,0,0]} 1. e4 {[%emt 0:00:01]} e5 {[%emt 0:05:03]} 2. Nf3 {[%emt 0:00:08]} Nf6 {[%emt 0:00:11]} 3. Nxe5 {[%emt 0:00:57]} d6 {[%emt 0:00:15]} 4. Nf3 {[%emt 0:00:08]} Nxe4 {[%emt 0:00:07]} 5. Qe2 {[%emt 0:02:49]} Qe7 {[%emt 0:00:23]} 6. d3 {[%emt 0:00:47]} Nf6 {[%emt 0:00:56]} 7. Bg5 {[%emt 0:02:20]} Qe6 {[%emt 0:01:04]} 8. Qxe6+ {[%emt 0:00:43]} Bxe6 {[%emt 0:00:30]} 9. Be2 {[%emt 0:00:30]} Bc8 {[%emt 0:01:23]} (9... Nc6 $11) 10. Nc3 $14 {[%emt 0:01:39]} Be7 {[%emt 0:01:07]} 11. Be3 {[%emt 0:02:02]} h6 {[%emt 0:03:03]} 12. Nd4 {[%emt 0:03:28]} Nc6 {[%emt 0:02:10]} 13. Nxc6 {[%emt 0:00:30]} bxc6 {[%emt 0:00:30]} 14. Bd4 {[%emt 0:01:00]} Be6 {[%emt 0:00:15]} 15. Ne4 {[%emt 0:03:17]} Nxe4 {[%emt 0:01:45]} 16. dxe4 {[%emt 0:00:12]} O-O {[%emt 0:00:24]} 17. c4 {[%emt 0:00:30]} f5 {[%emt 0:00:30] The position is equal.} 18. exf5 {[%emt 0:00:30]} Bxf5 {[%emt 0:00:30]} 19. O-O {[%emt 0:00:30]} Bf6 {[%emt 0:00:30]} 20. Bxf6 {[%emt 0:00:30] Weighted Error Value: White=0.14 (very precise) /Black=0.14 (very precise) .  Mistake:       	---       	Black=1      Inaccurate:     	White=2     	Black=1      OK:         	White=5     	Black=2} 1/2-1/2